[Event "44th Chess Olympiad Women 2022"]
[Site "Chennai"]
[Date "2022.08.10"]
[Round "11.8"]
[White "Gara, Ticia"]
[Black "Toma, Katarzyna"]
[Result "0-1"]
[ECO "D85"]
[WhiteElo "2367"]
[BlackElo "2303"]
[Annotator "ChessBase"]
[PlyCount "110"]
[EventDate "2022.07.29"]
[EventType "team-tourn"]
[EventCountry "IND"]
[SourceTitle "playchess.com"]
[Source "ChessBase"]
[SourceQuality "1"]
[WhiteTeam "Hungary"]
[BlackTeam "England"]
[WhiteTeamCountry "HUN"]
[BlackTeamCountry "ENG"]
[TimeControl "40/5400+30:1800+30"]

1. d4 {[%emt 0:00:03]} Nf6 {[%emt 0:00:09]} 2. c4 {[%emt 0:00:26]} g6 {[%emt 0:00:18]} 3. Nc3 {[%emt 0:00:27]} d5 {[%emt 0:00:19]} 4. cxd5 {[%emt 0:00:24]} Nxd5 {[%emt 0:00:05]} 5. e4 {[%emt 0:00:04]} Nxc3 {[%emt 0:00:11]} 6. bxc3 {[%emt 0:00:05]} Bg7 {[%emt 0:00:04]} 7. Nf3 {[%emt 0:00:09]} c5 {[%emt 0:00:29]} 8. Bb5+ {[%emt 0:00:36]} Nd7 {[%emt 0:07:18]} 9. O-O {[%emt 0:01:20]} O-O {[%emt 0:00:40]} 10. Re1 {[%emt 0:00:07]} a6 {[%emt 0:09:13]} 11. Bf1 {[%emt 0:00:58]} b5 {[%emt 0:08:54]} 12. a4 {[%emt 0:01:16]} Rb8 {[%emt 0:00:08]} 13. Rb1 {[%emt 0:07:47]} b4 {[%emt 0:06:51]} 14. Bf4 {[%emt 0:05:25]} e5 {[%emt 0:10:56]} 15. dxe5 {[%emt 0:12:23]} bxc3 {[%emt 0:00:07]} 16. Rxb8 {[%emt 0:08:00]} Nxb8 {[%emt 0:00:05]} 17. Qb3 {[%emt 0:00:04]} Bd7 {[%emt 0:06:12]} 18. Qxc3 {[%emt 0:06:40]} Bxa4 {[%emt 0:01:24]} 19. Qxc5 {[%emt 0:00:17]} Qc8 {[%emt 0:02:48]} 20. Qb4 {[%emt 0:03:46]} Bc6 {[%emt 0:02:01]} 21. Nd4 {[%emt 0:13:13]} Qd7 {[%emt 0:06:37]} 22. Bg3 {[%emt 0:20:55]} Re8 {[%emt 0:05:21]} 23. f4 {[%emt 0:05:27]} Ba8 {[%emt 0:02:57]} 24. Bf2 {[%emt 0:01:19]} h6 {[%emt 0:13:25]} 25. e6 {[%emt 0:04:28]} fxe6 {[%emt 0:01:19]} 26. Nxe6 {[%emt 0:00:54]} Nc6 {[%emt 0:00:45]} 27. Qb3 {[%emt 0:00:04]} Na5 {[%emt 0:01:56]} 28. Nc5+ {[%emt 0:01:39]} Nxb3 {[%emt 0:01:43]} 29. Nxd7 {[%emt 0:00:02]} Nd2 {[%emt 0:00:18]} 30. e5 {[%emt 0:00:27]} Nxf1 {[%emt 0:00:11]} 31. Kxf1 {[%emt 0:00:11]} Bc6 {[%emt 0:00:26]} 32. Nc5 {[%emt 0:00:34]} Bf8 {[%emt 0:00:29]} 33. Ne4 {[%emt 0:01:47]} Kf7 {[%emt 0:00:49]} 34. Nf6 {[%emt 0:02:10]} Rc8 {[%emt 0:01:24]} 35. Bh4 {[%emt 0:03:38]} Ke6 {[%emt 0:01:46]} 36. g4 {[%emt 0:00:43]} Bb5+ {[%emt 0:00:28]} 37. Kg1 {[%emt 0:00:22]} Bb4 {[%emt 0:04:59]} 38. Rd1 {[%emt 0:00:41]} a5 {[%emt 0:00:46]} 39. Bf2 {[%emt 0:00:31]} Bc6 {[%emt 0:03:18]} 40. Be1 {[%emt 0:00:32]} Bc5+ {[%emt 0:00:49]} 41. Bf2 {[%emt 0:30:04]} Be7 {[%emt 0:31:13]} 42. Rc1 {[%emt 0:00:00]} Ba3 {[%emt 0:00:00]} 43. Rc2 {[%emt 0:00:00]} Bb7 {[%emt 0:00:00]} 44. Rxc8 {[%emt 0:00:00]} Bxc8 {[%emt 0:00:00]} 45. Bd4 {[%emt 0:00:00]} Bc1 {[%emt 0:00:00]} 46. Ne8 {[%emt 0:00:00]} Kd5 {[%emt 0:00:00]} 47. Bc3 {[%emt 0:00:00]} a4 {[%emt 0:00:00]} 48. Nd6 {[%emt 0:00:00]} Bxg4 {[%emt 0:00:00]} 49. Kf2 {[%emt 0:00:00]} Bxf4 {[%emt 0:00:00]} 50. h4 {[%emt 0:02:37]} Bxe5 {[%emt 0:00:00]} 51. Bxe5 {[%emt 0:00:37]} Kxe5 {[%emt 0:00:00]} 52. Nb5 {[%emt 0:00:10]} Kf4 {[%emt 0:00:00]} 53. Na3 {[%emt 0:01:13]} Be6 {[%emt 0:00:00]} 54. Nc2 {[%emt 0:01:13]} Kg4 {[%emt 0:00:00]} 55. Nd4 {[%emt 0:00:12]} a3 {[%emt 0:00:00]} 0-1

[Event "44th Chess Olympiad Women 2022"]
[Site "Chennai"]
[Date "2022.08.10"]
[Round "11.8"]
[White "Houska, Jovanka"]
[Black "Hoang, Thanh Trang"]
[Result "0-1"]
[ECO "A84"]
[WhiteElo "2360"]
[BlackElo "2376"]
[Annotator "ChessBase"]
[PlyCount "70"]
[EventDate "2022.07.29"]
[EventType "team-tourn"]
[EventCountry "IND"]
[SourceTitle "playchess.com"]
[Source "ChessBase"]
[SourceQuality "1"]
[WhiteTeam "England"]
[BlackTeam "Hungary"]
[WhiteTeamCountry "ENG"]
[BlackTeamCountry "HUN"]
[TimeControl "40/5400+30:1800+30"]

1. d4 {[%emt 0:00:03]} e6 {[%emt 0:00:28]} 2. c4 {[%emt 0:00:15]} f5 {[%emt 0:00:35]} 3. Nf3 {[%emt 0:00:37]} Nf6 {[%emt 0:00:13]} 4. g3 {[%emt 0:00:11]} c6 {[%emt 0:00:56]} 5. Qc2 {[%emt 0:01:55]} d5 {[%emt 0:01:13]} 6. Bf4 {[%emt 0:00:11]} Bd6 {[%emt 0:03:22]} 7. Bxd6 {[%emt 0:04:34]} Qxd6 {[%emt 0:00:11]} 8. Nbd2 {[%emt 0:00:10]} O-O {[%emt 0:04:15]} 9. e3 {[%emt 0:02:04]} Nbd7 {[%emt 0:05:43]} 10. Rc1 {[%emt 0:02:03]} Ne4 {[%emt 0:05:04]} 11. Be2 {[%emt 0:03:32]} Rf6 {[%emt 0:05:18]} 12. c5 {[%emt 0:19:39]} Qc7 {[%emt 0:07:10]} 13. Nb3 {[%emt 0:09:56]} Rh6 {[%emt 0:05:56]} 14. Bd3 {[%emt 0:10:06]} e5 {[%emt 0:06:01]} 15. Nh4 {[%emt 0:03:40]} Ndf6 {[%emt 0:14:55]} 16. f3 {[%emt 0:14:06]} g5 {[%emt 0:02:54]} 17. Nxf5 {[%emt 0:08:43]} Bxf5 {[%emt 0:00:32]} 18. fxe4 {[%emt 0:00:02]} Bxe4 {[%emt 0:04:08]} 19. O-O {[%emt 0:03:03]} Bxd3 {[%emt 0:12:32]} 20. Qxd3 {[%emt 0:00:04]} Ng4 {[%emt 0:00:58]} 21. Qf5 {[%emt 0:00:46]} Nxh2 {[%emt 0:01:07]} 22. dxe5 {[%emt 0:00:19]} Nxf1 {[%emt 0:00:25]} 23. Rxf1 {[%emt 0:00:04]} Re8 {[%emt 0:02:29]} 24. Nd4 {[%emt 0:00:03]} Qxe5 {[%emt 0:02:57]} 25. Qf7+ {[%emt 0:00:31]} Kh8 {[%emt 0:00:08]} 26. Nf5 {[%emt 0:00:04]} Rg6 {[%emt 0:04:50]} 27. Rf2 {[%emt 0:02:04]} Qe6 {[%emt 0:03:07]} 28. Qxb7 {[%emt 0:00:17]} Rf8 {[%emt 0:00:45]} 29. g4 {[%emt 0:03:08]} Qe4 {[%emt 0:01:01]} 30. Rg2 {[%emt 0:04:15]} h5 {[%emt 0:01:03]} 31. Qxa7 {[%emt 0:08:00]} Qb1+ {[%emt 0:01:13]} 32. Kh2 {[%emt 0:00:06]} hxg4 {[%emt 0:01:04]} 33. Kg3 {[%emt 0:01:21]} Qxf5 {[%emt 0:02:21]} 34. Rh2+ {[%emt 0:00:04]} Rh6 {[%emt 0:00:07]} 35. Rxh6+ {[%emt 0:00:47]} Kg8 {[%emt 0:00:06]} 0-1

[Event "44th Chess Olympiad Women 2022"]
[Site "Chennai"]
[Date "2022.08.10"]
[Round "11.8"]
[White "Gaal, Zsoka"]
[Black "Kalaiyalahan, Akshaya"]
[Result "1-0"]
[ECO "A07"]
[WhiteElo "2313"]
[BlackElo "2158"]
[Annotator "ChessBase"]
[PlyCount "151"]
[EventDate "2022.07.29"]
[EventType "team-tourn"]
[EventCountry "IND"]
[SourceTitle "playchess.com"]
[Source "ChessBase"]
[SourceQuality "1"]
[WhiteTeam "Hungary"]
[BlackTeam "England"]
[WhiteTeamCountry "HUN"]
[BlackTeamCountry "ENG"]
[TimeControl "40/5400+30:1800+30"]

1. Nf3 {[%emt 0:00:10]} d5 {[%emt 0:00:04]} 2. g3 {[%emt 0:00:07]} c6 {[%emt 0:00:07]} 3. Bg2 {[%emt 0:00:06]} Bg4 {[%emt 0:00:11]} 4. O-O {[%emt 0:00:31]} e6 {[%emt 0:00:23]} 5. h3 {[%emt 0:00:56]} Bh5 {[%emt 0:00:12]} 6. c4 {[%emt 0:00:55]} Nd7 {[%emt 0:00:41]} 7. cxd5 {[%emt 0:04:04]} cxd5 {[%emt 0:00:26]} 8. d4 {[%emt 0:05:05]} Bd6 {[%emt 0:00:49]} 9. Nc3 {[%emt 0:02:16]} Ne7 {[%emt 0:00:45]} 10. Qb3 {[%emt 0:09:29]} Qb6 {[%emt 0:02:47]} 11. Qxb6 {[%emt 0:06:32]} Nxb6 {[%emt 0:00:12]} 12. Nb5 {[%emt 0:09:45]} Bb8 {[%emt 0:04:15]} 13. Bf4 {[%emt 0:01:13]} Bxf4 {[%emt 0:01:41]} 14. gxf4 {[%emt 0:00:10]} O-O {[%emt 0:01:52]} 15. Rfc1 {[%emt 0:01:00]} Bxf3 {[%emt 0:03:16]} 16. Bxf3 {[%emt 0:00:20]} Nc6 {[%emt 0:00:15]} 17. e3 {[%emt 0:01:17]} Rfd8 {[%emt 0:00:46]} 18. b3 {[%emt 0:16:07]} a6 {[%emt 0:00:57]} 19. Nc3 {[%emt 0:00:39]} Rac8 {[%emt 0:00:45]} 20. Kf1 {[%emt 0:01:19]} Rc7 {[%emt 0:05:31]} 21. Ke1 {[%emt 0:00:16]} Rdc8 {[%emt 0:00:14]} 22. Kd2 {[%emt 0:00:11]} Kf8 {[%emt 0:00:58]} 23. Bd1 {[%emt 0:03:30]} Ke7 {[%emt 0:00:55]} 24. Ne2 {[%emt 0:04:10]} Kd6 {[%emt 0:08:50]} 25. Rc3 {[%emt 0:00:15]} Nd7 {[%emt 0:01:14]} 26. Rac1 {[%emt 0:04:02]} b5 {[%emt 0:02:56]} 27. f3 {[%emt 0:01:28]} f5 {[%emt 0:00:39]} 28. Ng3 {[%emt 0:01:46]} Nb6 {[%emt 0:10:04]} 29. Nh1 {[%emt 0:01:17]} Nb4 {[%emt 0:06:36]} 30. Rxc7 {[%emt 0:01:12]} Rxc7 {[%emt 0:00:04]} 31. Ra1 {[%emt 0:01:05]} Ra7 {[%emt 0:10:08]} 32. a3 {[%emt 0:02:13]} Nc6 {[%emt 0:00:06]} 33. Be2 {[%emt 0:00:06]} Na5 {[%emt 0:01:11]} 34. Kc2 {[%emt 0:03:22]} Rc7+ {[%emt 0:06:31]} 35. Kb2 {[%emt 0:00:07]} Nb7 {[%emt 0:00:47]} 36. Rg1 {[%emt 0:02:14]} g6 {[%emt 0:02:43]} 37. Nf2 {[%emt 0:01:01]} Nd7 {[%emt 0:01:27]} 38. Nd3 {[%emt 0:03:09]} Kc6 {[%emt 0:01:01]} 39. a4 {[%emt 0:12:04]} bxa4 {[%emt 0:08:12]} 40. Ra1 {[%emt 0:02:33]} a5 {[%emt 0:07:21]} 41. Rxa4 {[%emt 0:31:07]} Kb6 {[%emt 0:36:29]} 42. Ra1 {[%emt 0:00:00]} Nd6 {[%emt 0:00:00]} 43. Nf2 {[%emt 0:00:00]} Nb5 {[%emt 0:00:00]} 44. h4 {[%emt 0:00:00]} Nb8 {[%emt 0:00:00]} 45. Bf1 {[%emt 0:00:00]} Na6 {[%emt 0:00:00]} 46. Bxb5 {[%emt 0:00:00]} Kxb5 {[%emt 0:00:00]} 47. Nd3 {[%emt 0:00:00]} Rc8 {[%emt 0:00:00]} 48. Rc1 {[%emt 0:00:00]} Rxc1 {[%emt 0:00:00]} 49. Kxc1 {[%emt 0:00:00]} Kc6 {[%emt 0:00:00]} 50. Kb2 {[%emt 0:00:00]} Nb4 {[%emt 0:00:00]} 51. Nc5 {[%emt 0:00:00]} Kd6 {[%emt 0:00:00]} 52. Nb7+ {[%emt 0:00:00]} Kc7 {[%emt 0:00:00]} 53. Nc5 {[%emt 0:00:45]} Kd6 {[%emt 0:00:00]} 54. Kc3 {[%emt 0:00:27]} Nc6 {[%emt 0:00:00]} 55. Nd3 {[%emt 0:00:11]} Ne7 {[%emt 0:01:47]} 56. Kb2 {[%emt 0:01:26]} Nc8 {[%emt 0:02:07]} 57. Nc5 {[%emt 0:00:21]} Na7 {[%emt 0:01:22]} 58. Ka3 {[%emt 0:03:24]} Nb5+ {[%emt 0:00:52]} 59. Ka4 {[%emt 0:00:20]} Nc3+ {[%emt 0:00:05]} 60. Kxa5 {[%emt 0:00:14]} Nd1 {[%emt 0:00:04]} 61. b4 {[%emt 0:00:35]} Nxe3 {[%emt 0:00:05]} 62. b5 {[%emt 0:00:18]} Nc2 {[%emt 0:00:25]} 63. Nb3 {[%emt 0:00:41]} Kc7 {[%emt 0:02:48]} 64. b6+ {[%emt 0:00:45]} Kb8 {[%emt 0:00:18]} 65. Ka6 {[%emt 0:01:02]} Nb4+ {[%emt 0:00:47]} 66. Kb5 {[%emt 0:00:01]} Nc2 {[%emt 0:00:28]} 67. Kc5 {[%emt 0:01:39]} Kb7 {[%emt 0:01:10]} 68. Na5+ {[%emt 0:00:08]} Kb8 {[%emt 0:01:23]} 69. Nc6+ {[%emt 0:00:09]} Kc8 {[%emt 0:00:41]} 70. Kb5 {[%emt 0:00:36]} Kb7 {[%emt 0:01:12]} 71. Nd8+ {[%emt 0:00:12]} Kb8 {[%emt 0:00:25]} 72. Nxe6 {[%emt 0:00:10]} Ne1 {[%emt 0:00:32]} 73. Kc6 {[%emt 0:01:31]} Nxf3 {[%emt 0:00:05]} 74. b7 {[%emt 0:00:36]} h6 {[%emt 0:00:55]} 75. Nc5 {[%emt 0:00:13]} Nxd4+ {[%emt 0:00:06]} 76. Kb6 {[%emt 0:00:06]} 1-0

[Event "44th Chess Olympiad Women 2022"]
[Site "Chennai"]
[Date "2022.08.10"]
[Round "11.8"]
[White "Yao, Lan"]
[Black "Lazarne Vajda, Szidonia"]
[Result "1/2-1/2"]
[ECO "C54"]
[WhiteElo "2274"]
[BlackElo "2313"]
[Annotator "ChessBase"]
[PlyCount "70"]
[EventDate "2022.07.29"]
[EventType "team-tourn"]
[EventCountry "IND"]
[SourceTitle "playchess.com"]
[Source "ChessBase"]
[SourceQuality "1"]
[WhiteTeam "England"]
[BlackTeam "Hungary"]
[WhiteTeamCountry "ENG"]
[BlackTeamCountry "HUN"]
[TimeControl "40/5400+30:1800+30"]

1. e4 {[%emt 0:00:02]} e5 {[%emt 0:00:15]} 2. Nf3 {[%emt 0:00:02]} Nc6 {[%emt 0:00:13]} 3. Bc4 {[%emt 0:00:05]} Bc5 {[%emt 0:00:19]} 4. c3 {[%emt 0:00:04]} Nf6 {[%emt 0:00:23]} 5. d3 {[%emt 0:00:03]} O-O {[%emt 0:00:47]} 6. Bb3 {[%emt 0:00:03]} d6 {[%emt 0:01:01]} 7. Nbd2 {[%emt 0:00:08]} a5 {[%emt 0:01:49]} 8. O-O {[%emt 0:00:20]} Re8 {[%emt 0:02:19]} 9. h3 {[%emt 0:00:10]} h6 {[%emt 0:02:17]} 10. Re1 {[%emt 0:00:13]} Be6 {[%emt 0:01:03]} 11. Nf1 {[%emt 0:02:07]} Bxb3 {[%emt 0:03:12]} 12. axb3 {[%emt 0:00:09]} d5 {[%emt 0:06:00]} 13. Qe2 {[%emt 0:01:35]} Qd7 {[%emt 0:15:22]} 14. Ng3 {[%emt 0:27:31]} Rad8 {[%emt 0:11:52]} 15. Nh4 {[%emt 0:02:43]} dxe4 {[%emt 0:03:36]} 16. dxe4 {[%emt 0:00:18]} Qd3 {[%emt 0:02:48]} 17. Nh5 {[%emt 0:15:16]} Re6 {[%emt 0:08:29]} 18. Qxd3 {[%emt 0:04:36]} Rxd3 {[%emt 0:00:06]} 19. Nxf6+ {[%emt 0:00:37]} Rxf6 {[%emt 0:00:35]} 20. Nf5 {[%emt 0:00:37]} b6 {[%emt 0:09:17]} 21. Kf1 {[%emt 0:05:33]} Rd7 {[%emt 0:05:01]} 22. Ke2 {[%emt 0:01:51]} Ne7 {[%emt 0:02:20]} 23. Ne3 {[%emt 0:04:38]} Ng6 {[%emt 0:03:46]} 24. g3 {[%emt 0:00:37]} Kf8 {[%emt 0:03:36]} 25. Bd2 {[%emt 0:05:08]} Bxe3 {[%emt 0:01:49]} 26. Bxe3 {[%emt 0:00:12]} Rfd6 {[%emt 0:00:30]} 27. Ra4 {[%emt 0:03:36]} Ne7 {[%emt 0:03:19]} 28. f4 {[%emt 0:09:02]} Nc6 {[%emt 0:03:17]} 29. Rf1 {[%emt 0:05:23]} f6 {[%emt 0:00:48]} 30. f5 {[%emt 0:04:21]} Nd8 {[%emt 0:01:43]} 31. g4 {[%emt 0:01:52]} Rc6 {[%emt 0:01:08]} 32. Raa1 {[%emt 0:00:45]} Nb7 {[%emt 0:00:52]} 33. h4 {[%emt 0:02:28]} Nc5 {[%emt 0:00:23]} 34. Bxc5+ {[%emt 0:00:06]} Rxc5 {[%emt 0:00:03]} 35. Rad1 {[%emt 0:01:55]} Rxd1 {[%emt 0:01:16]} 1/2-1/2

[Event "44th Chess Olympiad Women 2022"]
[Site "Chennai"]
[Date "2022.08.09"]
[Round "11.9"]
[White "Vega Gutierrez, Sabrina"]
[Black "Injac, Teodora"]
[Result "1/2-1/2"]
[ECO "D38"]
[WhiteElo "2366"]
[BlackElo "2372"]
[Annotator "RC"]
[PlyCount "136"]
[EventDate "2022.07.29"]
[EventType "team-tourn"]
[EventCountry "IND"]
[SourceTitle "playchess.com"]
[Source "ChessBase"]
[SourceQuality "1"]
[WhiteTeam "Spain"]
[BlackTeam "Serbia"]
[WhiteTeamCountry "ESP"]
[BlackTeamCountry "SRB"]
[TimeControl "40/5400+30:1800+30"]

1. d4 {[%emt 0:00:04]} Nf6 {[%emt 0:00:45]} 2. c4 {[%emt 0:00:08]} e6 {[%emt 0:00:18]} 3. Nf3 {[%emt 0:00:13]} d5 {[%emt 0:03:17]} 4. Nc3 {[%emt 0:00:19]} Bb4 {[%emt 0:02:10]} 5. cxd5 {[%emt 0:00:35]} exd5 {[%emt 0:00:04]} 6. Bg5 {[%emt 0:00:13]} h6 {[%emt 0:01:14]} 7. Bxf6 {[%emt 0:00:49]} Qxf6 {[%emt 0:00:13]} 8. Qb3 {[%emt 0:00:09]} c5 {[%emt 0:06:46]} 9. a3 {[%emt 0:00:15]} Bxc3+ {[%emt 0:01:02]} 10. Qxc3 {[%emt 0:00:28]} Nd7 {[%emt 0:00:54]} 11. g3 {[%emt 0:01:40]} O-O {[%emt 0:03:41]} 12. Bg2 {[%emt 0:00:07]} b6 {[%emt 0:01:13]} 13. O-O {[%emt 0:00:55]} Bb7 {[%emt 0:01:10]} 14. Rfc1 {[%emt 0:03:38]} Qe7 {[%emt 0:18:04]} 15. dxc5 {[%emt 0:11:58]} bxc5 {[%emt 0:00:55]} 16. b4 {[%emt 0:00:21]} Rac8 {[%emt 0:09:44]} 17. bxc5 {[%emt 0:05:08]} Nxc5 {[%emt 0:02:40]} 18. Bh3 {[%emt 0:06:39]} Ne6 {[%emt 0:21:40]} 19. Qe5 {[%emt 0:11:55]} Rfe8 {[%emt 0:03:15]} 20. Bxe6 {[%emt 0:18:59]} Qxe6 {[%emt 0:05:10]} 21. Qxe6 {[%emt 0:00:10]} fxe6 {[%emt 0:00:12]} 22. Nd4 {[%emt 0:10:13]} Ba6 {[%emt 0:06:15]} 23. f4 {[%emt 0:04:39]} Bc4 {[%emt 0:01:33]} 24. Rab1 {[%emt 0:00:48]} Rc7 {[%emt 0:00:46]} 25. Nf3 {[%emt 0:01:53]} Rec8 {[%emt 0:00:53]} 26. Kf2 {[%emt 0:00:03]} Kf7 {[%emt 0:05:00]} 27. g4 {[%emt 0:04:33]} Ke7 {[%emt 0:00:12]} 28. h4 {[%emt 0:02:27]} Rf8 {[%emt 0:00:58]} 29. e3 {[%emt 0:02:52]} Rfc8 {[%emt 0:00:49]} 30. Ne5 {[%emt 0:01:38]} g5 {[%emt 0:01:57]} 31. hxg5 {[%emt 0:06:03]} hxg5 {[%emt 0:00:03]} 32. fxg5 {[%emt 0:03:16]} Kd6 {[%emt 0:00:20]} 33. Nxc4+ {[%emt 0:00:16]} dxc4 {[%emt 0:02:52]} 34. Kf3 {[%emt 0:01:12]} c3 {[%emt 0:00:40]} 35. Rb4 {[%emt 0:01:20]} e5 {[%emt 0:00:22]} 36. Ra4 {[%emt 0:01:39]} c2 {[%emt 0:00:11]} 37. Ke4 {[%emt 0:00:49]} Rc4+ {[%emt 0:00:56]} 38. Rxc4 {[%emt 0:00:03]} Rxc4+ {[%emt 0:00:02]} 39. Kf5 {[%emt 0:00:44]} Ke7 {[%emt 0:01:07]} 40. e4 {[%emt 0:00:42]} Rc5 {[%emt 0:00:30]} 41. g6 {[%emt 0:12:11]} Kf8 {[%emt 0:15:12]} 42. Kf6 {[%emt 0:00:10]} Kg8 {[%emt 0:00:13]} 43. g7 {[%emt 0:14:47]} a6 {[%emt 0:06:55]} 44. a4 {[%emt 0:00:02]} a5 {[%emt 0:01:19]} 45. g5 {[%emt 0:00:02]} Rc8 {[%emt 0:00:27]} 46. Kxe5 {[%emt 0:00:30]} Kxg7 {[%emt 0:00:04]} 47. Kd4 {[%emt 0:00:56]} Kg6 {[%emt 0:00:46]} 48. Kd3 {[%emt 0:00:08]} Rd8+ {[%emt 0:00:42]} 49. Ke3 {[%emt 0:00:02]} Rc8 {[%emt 0:00:14]} 50. Kd3 {[%emt 0:00:01]} Rd8+ {[%emt 0:00:04]} 51. Kxc2 {[%emt 0:00:38]} Kxg5 {[%emt 0:01:20]} 52. Rf1 {[%emt 0:06:09]} Rd4 {[%emt 0:00:54]} 53. Rf5+ {[%emt 0:00:03]} Kg6 {[%emt 0:00:05]} 54. Kb3 {[%emt 0:00:16]} Rb4+ {[%emt 0:01:05]} 55. Ka3 {[%emt 0:00:02]} Rxe4 {[%emt 0:00:04]} 56. Rxa5 {[%emt 0:00:03]} Kf6 {[%emt 0:02:13]} 57. Rb5 {[%emt 0:01:32]} Ke6 {[%emt 0:02:36]} 58. a5 {[%emt 0:00:07]} Kd7 {[%emt 0:01:06]} 59. Rc5 {[%emt 0:01:10]} Kd6 {[%emt 0:00:37]} 60. Rc1 {[%emt 0:00:29]} Re7 {[%emt 0:00:21]} 61. Kb4 {[%emt 0:00:27]} Rc7 {[%emt 0:00:48]} 62. Rh1 {[%emt 0:00:12]} Kc6 {[%emt 0:00:18]} 63. a6 {[%emt 0:00:26]} Kb6 {[%emt 0:00:20]} 64. Rh6+ {[%emt 0:00:02]} Ka7 {[%emt 0:00:10]} 65. Kb5 {[%emt 0:00:07]} Rg7 {[%emt 0:00:13]} 66. Rh5 {[%emt 0:00:04]} Rf7 {[%emt 0:00:14]} 67. Rg5 {[%emt 0:00:04]} Rh7 {[%emt 0:00:10]} 68. Rf5 {[%emt 0:00:02]} Rg7 {[%emt 0:00:07]} 1/2-1/2

[Event "44th Chess Olympiad Women 2022"]
[Site "Chennai"]
[Date "2022.08.09"]
[Round "11.9"]
[White "Blagojevic, Tijana"]
[Black "Matnadze, Ana"]
[Result "0-1"]
[ECO "B10"]
[WhiteElo "2330"]
[BlackElo "2406"]
[Annotator "RC"]
[PlyCount "72"]
[EventDate "2022.07.29"]
[EventType "team-tourn"]
[EventCountry "IND"]
[SourceTitle "playchess.com"]
[Source "ChessBase"]
[SourceQuality "1"]
[WhiteTeam "Serbia"]
[BlackTeam "Spain"]
[WhiteTeamCountry "SRB"]
[BlackTeamCountry "ESP"]
[TimeControl "40/5400+30:1800+30"]

1. e4 {[%emt 0:00:07]} c6 {[%emt 0:00:06]} 2. Nf3 {[%emt 0:00:07]} d5 {[%emt 0:00:08]} 3. d3 {[%emt 0:00:05]} g6 {[%emt 0:00:22]} 4. e5 {[%emt 0:00:09]} Bg7 {[%emt 0:00:22]} 5. d4 {[%emt 0:00:16]} Bg4 {[%emt 0:04:53]} 6. Nbd2 {[%emt 0:01:18]} c5 {[%emt 0:00:29]} 7. Bb5+ {[%emt 0:07:54]} Nc6 {[%emt 0:00:45]} 8. c3 {[%emt 0:00:14]} Qb6 {[%emt 0:00:36]} 9. Bxc6+ {[%emt 0:00:45]} bxc6 {[%emt 0:00:35]} 10. h3 {[%emt 0:00:26]} Bf5 {[%emt 0:01:37]} 11. O-O {[%emt 0:00:07]} h5 {[%emt 0:01:36]} 12. Nb3 {[%emt 0:00:55]} cxd4 {[%emt 0:01:24]} 13. cxd4 {[%emt 0:00:57]} e6 {[%emt 0:00:23]} 14. Ne1 {[%emt 0:05:59]} h4 {[%emt 0:00:46]} 15. Nd3 {[%emt 0:02:59]} Bxd3 {[%emt 0:00:44]} 16. Qxd3 {[%emt 0:00:03]} Ne7 {[%emt 0:00:31]} 17. Be3 {[%emt 0:08:19]} Nf5 {[%emt 0:00:39]} 18. Rac1 {[%emt 0:00:06]} Bh6 {[%emt 0:02:17]} 19. Bxh6 {[%emt 0:00:26]} Rxh6 {[%emt 0:00:05]} 20. Rc5 {[%emt 0:00:07]} Kf8 {[%emt 0:01:07]} 21. Rfc1 {[%emt 0:00:20]} Ne7 {[%emt 0:01:33]} 22. Qc3 {[%emt 0:04:40]} Kg7 {[%emt 0:00:57]} 23. Na5 {[%emt 0:00:32]} Rb8 {[%emt 0:01:55]} 24. Rc2 {[%emt 0:02:02]} Rc8 {[%emt 0:02:22]} 25. Qa3 {[%emt 0:10:44]} Rh5 {[%emt 0:02:12]} 26. Nb3 {[%emt 0:01:22]} Rc7 {[%emt 0:01:22]} 27. Qa4 {[%emt 0:02:46]} Rf5 {[%emt 0:00:41]} 28. Ra5 {[%emt 0:04:21]} Rf4 {[%emt 0:01:23]} 29. Ra6 {[%emt 0:00:25]} Qb8 {[%emt 0:02:39]} 30. Rc5 {[%emt 0:00:51]} Rb7 {[%emt 0:01:55]} 31. Qa3 {[%emt 0:04:39]} Nf5 {[%emt 0:11:13]} 32. Ra4 {[%emt 0:08:28]} Re4 {[%emt 0:09:22]} 33. Rca5 {[%emt 0:07:20]} Re1+ {[%emt 0:08:55]} 34. Kh2 {[%emt 0:00:03]} Qd8 {[%emt 0:11:25]} 35. Nc5 {[%emt 0:06:44]} Qg5 {[%emt 0:02:16]} 36. Qf3 {[%emt 0:01:18]} Qc1 {[%emt 0:01:02]} 0-1